Cogmind - Beta 9.1 @@@ ROGUE MODE // 2019.10.31 @ 20:31:44 // Halloween2019/Abominations Player: tourn Result: Destroyed by Lesser Abomination with Grenade Launcher Performance ------------- Evolutions (0) 0 Regions Visited (1) 200 Robots Destroyed (3) 15 Value Destroyed (128) 128 Prototype IDs (0) 0 Alien Tech Used (0) 0 Bonus (0) 0 TOTAL SCORE: 343 Bonus ------- None Cogmind --------- Core Integrity 0/250 Matter 275/300 Energy 53/100 System Corruption 0% Temperature Cool (126) Location -10/Materials Parts ------- Power (1) Propulsion (2) Aluminum Leg Utility (2) Small Storage Unit Weapon (2) Spread Laser Spread Laser Inventory (6) Ion Engine Grenade Launcher Flail Peak State ------------ Power Light Ion Engine Propulsion Aluminum Leg Aluminum Leg Utility Small Storage Unit Weapon Beam Rifle Beam Rifle Inventory Ion Engine Light Treads Light Treads Wheel Assault Rifle Grenade Launcher [Rating: 8] Favorites ----------- Power Light Ion Engine Engine Light Ion Engine Propulsion Aluminum Leg Leg Aluminum Leg Utility Small Storage Unit Storage Small Storage Unit Weapon Beam Rifle Energy Gun Beam Rifle Ballistic Gun Assault Rifle Build | -11 -10 ------- Run | Scr Mat Slots Evolved . | . . Power . | . . Propulsion . | . . Utility . | . . Weapon . | . . Parts Attached 7 | . 7 Power . | . . Engine . | . . Core . | . . Reactor . | . . Propulsion 1 | . 1 Treads . | . . Leg 1 | . 1 Wheel . | . . Hover . | . . Flight . | . . Utility . | . . Device . | . . Storage . | . . Processor . | . . Hackware . | . . Protection . | . . Artifact . | . . Weapon 6 | . 6 Energy Gun 5 | . 5 Energy Cannon . | . . Ballistic Gun 1 | . 1 Ballistic Cannon . | . . Launcher . | . . Special Weapon . | . . Impact Weapon . | . . Slashing Weapon . | . . Piercing Weapon . | . . Special Melee Weapon . | . . Unidentified Prototypes . | . . Parts Lost 6 | . 6 Power 1 | . 1 Propulsion 2 | . 2 Utility . | . . Weapon 3 | . 3 Highest Loss Streak 6 | . 6 Average Slot Usage (%) 81 | . 81 Engine 12 | . 12 Leg 28 | . 28 Storage 14 | . 14 Energy Gun 24 | . 24 Ballistic Gun 1 | . 1 Naked Turns . | . . Heaviest Build 13 | 10 13 Greatest Support 20 | 20 20 Greatest Overweight (x) . | . . Average Overweight (x) . | . . Largest Inventory Capacity 6 | . 6 Average Capacity 6 | . 6 Most Carried 6 | . 6 Average Carried 5 | . 5 Final Capacity 6 | 6 6 Final Carried 6 | 6 3 Class Distribution -------------------- 100% | Mutant Dominant Class ---------------- Mutant | -10/Materials Resources | -11 -10 ----------- Run | Scr Mat Matter Collected 238 | 200 38 Remotely . | . . Salvage Created 147 | . 147 Parts 5 | . 5 Haulers Intercepted . | . . Recyclers Shooed . | . . Parts Field Recycled . | . . Retrieved Matter . | . . Parts Self-Destructed . | . . Prevented . | . . Kills | -11 -10 ------- Run | Scr Mat Combat Hostiles Destroyed 3 | . 3 Guns 2 | . 2 Classes Destroyed 2 | . 2 Grunt 2 | . 2 Abomination 1 | . 1 Best Kill Streak 2 | . 2 Combat Bots Only 2 | . 2 Max Kills in Single Turn 1 | . 1 Gunslinging . | . . Exploded . | . . Melee . | . . Uniques/NPCs Destroyed . | . . Combat | -11 -10 -------- Run | Scr Mat Damage Taken 668 | . 668 Core 255 | . 255 Absorbed by Shields . | . . Core Remaining (%) 100 | 100 . Volleys Fired 9 | . 9 Largest 2 | . 2 Hottest 130 | . 130 Shots Fired 17 | . 17 Gun 17 | . 17 Cannon . | . . Launcher . | . . Special . | . . Kinetic 1 | . 1 Thermal 16 | . 16 Explosive . | . . Electromagnetic . | . . Robot Hit Streak 7 | . 7 Robot Miss Streak 3 | . 3 Penetration Max . | . . Secondary Targets . | . . Shots Hit Robots 14 | . 14 Core Hits 7 | . 7 Critical Hits . | . . Critical Kills . | . . Critical Parts Destroyed . | . . Melee Attacks . | . . Impact . | . . Slashing . | . . Piercing . | . . Sneak Attacks . | . . Combat Hostiles . | . . Follow-up Attacks . | . . Damage Inflicted 239 | . 239 Guns 239 | . 239 Cannons . | . . Explosions . | . . Melee . | . . Ramming . | . . Kinetic 10 | . 10 Thermal 229 | . 229 Explosive . | . . Electromagnetic . | . . Impact . | . . Slashing . | . . Piercing . | . . Highest Corruption . | . . Average Corruption . | . . Corruption Purged . | . . Overload Shots . | . . Overflow Damage . | . . Projectiles . | . . Explosions . | . . Melee . | . . Knockbacks . | . . Impact . | . . Kinetic . | . . Secondary . | . . Self-Inflicted Damage . | . . Shots . | . . Rammed . | . . Targets Rammed . | . . Kicked . | . . Crushed . | . . Highest Temperature 983 | . 983 Average Temperature 297 | . 297 Received Heat Transfer 36 | . 36 Effects 16 | . 16 Shutdowns 4 | . 4 Interference 2 | . 2 Damage (minor) 4 | . 4 Damage (major) 3 | . 3 Damage (core) 3 | . 3 Siege Activations . | . . Robots Corrupted . | . . Combat Hostiles . | . . Parts Fried . | . . Impact Corruptions . | . . Robots Melted 1 | . 1 Combat Hostiles 1 | . 1 Parts Melted 1 | . 1 Heat Transferred 243 | . 243 Parts Sabotaged . | . . Parts Stolen . | . . Parts Stripped . | . . Power Chain Reactions . | . . Missiles Intercepted . | . . Alert | -11 -10 ------- Run | Scr Mat Peak Influence 70 | . 70 Average Influence 24 | . 24 Maximum Alert Level . | . . Low Security (%) 100 | . . Level 1 . | . . Level 2 . | . . Level 3 . | . . Level 4 . | . . Level 5 . | . . High Security . | . . Max Security . | . . Squads Dispatched 3 | . 3 Investigation 3 | . 3 Extermination . | . . Reinforcement . | . . Assault . | . . Garrison . | . . Intercept . | . . Construction Impeded . | . . Haulers Reinforced . | . . Stealth | -11 -10 --------- Run | Scr Mat Distress Signals 4 | . 4 Communications Jammed . | . . Distress Signals . | . . Times Spotted 9 | . 9 Peak Tracking Total 5 | . 5 Tactical Retreats . | . . Traps | -11 -10 ------- Run | Scr Mat Traps Triggered . | . . Indirectly . | . . Trap Hack Attempts . | . . Triggered . | . . Disarmed . | . . Reprogrammed . | . . Reused . | . . Traps Extracted . | . . Installed . | . . Triggered . | . . Machines | -11 -10 ---------- Run | Scr Mat Machines Disabled . | . . Max in Single Turn . | . . Machines Sabotaged . | . . Garrisons Compromised . | . . Overloaded Fab Kills . | . . Fab Network Shutdowns . | . . Hacking | -11 -10 --------- Run | Scr Mat Machines Accessed 1 | . 1 Terminals 1 | . 1 Fabricators . | . . Repair Stations . | . . Recycling Units . | . . Scanalyzers . | . . Garrison Access . | . . Total Hacks 2 | . 2 Successful . | . . Failed 2 | . 2 Catastrophic . | . . Database Lockouts . | . . Manual 2 | . 2 Terminals 2 | . 2 Fabricators . | . . Repair Stations . | . . Recycling Units . | . . Scanalyzers . | . . Garrison Access . | . . Terminal Hacks . | . . Fabricator Hacks . | . . Repair Station Hacks . | . . Recycling Unit Hacks . | . . Scanalyzer . | . . Garrison Access Hacks . | . . Unauthorized Hacks 2 | . 2 Terminals . | . . Fabricators . | . . Repair Stations . | . . Recycling Units . | . . Scanalyzers . | . . Garrison Access . | . . Data Cores Recovered . | . . Used . | . . Hacking Detections 1 | . 1 Full Trace Events . | . . Feedback Events . | . . Feedback Blocked . | . . Robot Schematics Acquired . | . . Robots Built . | . . Matter . | . . Time . | . . Total Robot Build Rating . | . . Part Schematics Acquired . | . . Parts Built . | . . Matter . | . . Time . | . . Total Part Build Rating . | . . Parts Repaired . | . . Time . | . . Parts Recycled . | . . Recycled Matter . | . . Retrieved Matter . | . . Retrieved Components . | . . Parts Scanalyzed . | . . Part Schematics Acquired . | . . Parts Damaged . | . . Bothacking | -11 -10 ------------ Run | Scr Mat Used RIF Installer . | . . Robots Hacked . | . . Non-combat . | . . Combat . | . . Robot Hacks Applied . | . . Relay Couplers Released . | . . Robots Rewired . | . . Allies Hacked . | . . Hacks Repelled . | . . Allies | -11 -10 -------- Run | Scr Mat Total Allies . | . . Largest Group . | . . Highest-Rated Group . | . . Highest-Rated Ally . | . . Total Orders . | . . Ally Attacks . | . . Total Damage . | . . Kills . | . . Allies Corrupted . | . . Allies Melted . | . . Intel | -11 -10 ------- Run | Scr Mat Robot Analysis Total . | . . Derelict Logs Recovered . | . . Drone Launches . | . . Drone Recoveries . | . . Exploration | -11 -10 ------------- Run | Scr Mat Turns Passed 223 | . 223 Spaces Moved 114 | 1 113 Core . | . . Treads . | . . Legs 114 | 1 113 Wheels . | . . Hover . | . . Flight . | . . Fastest Speed 120 | 120 120 Average Speed 120 | 120 120 Slowest Speed 120 | 120 120 Overloaded Moves . | . . Propulsion Burnouts . | . . Robots Hopped . | . . Cave-ins Triggered . | . . Exploration Rate (%) 14 | 2 27 Regions Visited 1 Branch Regions . Pre-discovered Areas . | . . Known Exits Taken . | . . Unknown Exits Taken 1 | 1 . Scrap Searched . | . . Spaces Dug . | . . Terrain Destroyed . | . . Melee . | . . Projectile . | . . AOE . | . . Actions | -11 -10 --------- Run | Scr Mat Total 185 | . 185 Wait 45 | . 45 Move 113 | . 113 Hop . | . . Pick Up 4 | . 4 Fast Attach 4 | . 4 Attach 3 | . 3 Detach . | . . Swap . | . . Drop 7 | . 7 Fire 9 | . 9 Melee . | . . Ram . | . . Kick . | . . Crush . | . . Escape Stasis . | . . Rewire . | . . Trap . | . . Miscellaneous . | . . Route ------- -11/Scrapyard -10/Materials History --------- Turn | Location | Event 1 | -11/Scrapyard | Discovered new exit (range 0) 1 | -11/Scrapyard | Entered Materials 109 | -10/Materials | Discovered new exit (range 10) 182 | -10/Materials | Core integrity fell below 50% 195 | -10/Materials | Core integrity fell below 20% 224 | -10/Materials | Destroyed by Lesser Abomination with Grenade Launcher Last Messages --------------- 00142_ W-16 Scout heat damages core (-4). 00172_ Lesser Abomination destroyed. 00180_ Critical hit. 00180_ Beam Rifle destroyed. 00182_ Lesser Abomination absorbs Lgt. Treads. 00184_ Acquired 10 matter. 00184_ Beam Rifle destroyed. 00188_ Acquired 5 matter. 00189_ Acquired 3 matter. 00190_ Lgt. Ion Engine destroyed. 00190_ Lesser Abomination destroyed. 00191_ Lesser Abomination absorbs Sml. Storage Unit. 00194_ Aluminum Leg destroyed. 00207_ Acquired Spread Laser. 00211_ Dropped Assault Rifle. 00211_ Acquired Spread Laser. 00218_ Lesser Abomination absorbs Lgt. Treads. 00221_ The unstable cave ceiling collapses. 00222_ Aluminum Leg destroyed. 00223_ Lesser Abomination absorbs Wheel. Map ----- +----------------------------------------------------+ | ??????????????????????????????????????????????? | | ??????????????????????????????????????????????? | | ??????????????????????????????????????????????? | | ??????????????????????????????????????????????? | | ??????????????????????????????????????????????? | | ?????????????????????????????+#?????? ???????? | | ????????????????????????????? ??? #?????? | | ????????????????????????????? ?? #?????? | | ?????????????????????? ???" ??? " ????? | | ?????????????????????# [ """" ?? " ???? | | ?????????????????????" % """" """" %""????? | | ?????????????????????# "" ##???? | | ????????????????????## A% #"" "#???? | | ????????????????????#; %"""" / "|| % "#???? | | ???????????????????##; """" """ < "#???? | | ???????????????????# ; % """" %"|| "#???? | | ????????????????##?# ; %""" % "#???? | | ?????????????#### ## ; % " "###?? | | ???########### ; """" % # """"### | | ???# ;#;;;;;;;;;;; """" " | | ???# % % """" % %"% % | | ???# = n A " % | | ???# A % """"%"" | | ???# ;;;;;;;;;; #### "" "" | | ???## ##? [#??" | | ????# #????###### @ ### | #???? | | ????# #?????????# //[[#?#% %""" #????? | | ????# ########### [ /[ #?#% """"" #??????? | | ????# # ## ##?# " """"" #??????? | | ????# # ##########??# T """"" #??????? | | ????# # #???????????# " """ #??????? | | ????# # #???????????# #??????? | | ????# # #???????????##########???????? | | ????# # #????????????????????????????? | | ????# + #????????????????????????????? | | ????# # #????????????????????????????? | | ????# # #????????????????????????????? | | ????# ##########????????????????????????????? | | ????# # #??????????????????????????????? | | ????# # #??????????????????????????????? | | ????# # = #??????????????????????????????? | | ????# + #??????????????????????????????? | | ????# # #??????????????????????????????? | | ????# # #??????????????????????????????? | | ????# ########??????????????????????????????? | | ????#####?????????????????????????????????????? | | ??????????????????????????????????????????????? | | ??????????????????????????????????????????????? | | ??????????????????????????????????????????????? | | ??????????????????????????????????????????????? | +----------------------------------------------------+ Best States ------------- Heat Dissipation 25 Energy Generation 10 Energy Capacity 125 Matter Stores 300 Matter Capacity 300 Sight Range 16 Terrain Scan Density 10 Evasion (%) 40 Item Schematics ----------------- None Robot Schematics ------------------ None Fabricated ------------ Nothing Alien Tech Used ----------------- None Achievements -------------- None Challenges ------------ None Game ------ Seed SystemMappingFlamer Manual? 0 Play Time 00:07:50 Cumulative 127.5 hours Start 2019.10.31 @ 20:27:03 End 2019.10.31 @ 20:31:44 Sessions 1 Manual Loads 0 Difficulty Rogue Special Mode Halloween2019/Abominations Game No. 38 Rogue 38 Adventurer 0 Explorer 0 Win Type - Total 2 Types 2/0/0/0/0/0/0 Lore% 52 Gallery% 54 Achievement% 36 Wizard Run 0 Options --------- ASCII 0 Keyboard 1 Movement Vi Keybinds 0 Fullscreen 1 Font 18/SmallcapsGlow Map View 76x50 Tactical HUD 1 Map Filters NONE Filters NONE Steam 1 RUN: 5f316cd2-e96c-47d3-8b04-8832826220ef